[Event "Early-Titled-Tuesday-Blitz-February-27-2024"]
[Site "Chess.com"]
[Date "2024.02.27"]
[Round "11"]
[White "JaackCamel"]
[Black "ikhasu"]
[Result "1-0"]
[WhiteElo "2222"]
[BlackElo "2420"]
[TimeControl "180+1"]
[EndTime "10:06:06 PST"]
[Termination "JaackCamel won by resignation"]

1. d4 {[%clk 0:03:00.9]} 1... Nf6 {[%clk 0:02:56.7]} 2. c4 {[%clk 0:03:00.3]}
2... b6 {[%clk 0:02:54.9]} 3. Nc3 {[%clk 0:02:56.3]} 3... Bb7 {[%clk 0:02:54.7]}
4. Nf3 {[%clk 0:02:55.4]} 4... e6 {[%clk 0:02:54.4]} 5. a3 {[%clk 0:02:54.5]}
5... d5 {[%clk 0:02:48.8]} 6. Bg5 {[%clk 0:02:51.6]} 6... Be7 {[%clk 0:02:47.3]}
7. e3 {[%clk 0:02:43.2]} 7... O-O {[%clk 0:02:46.7]} 8. Bd3 {[%clk 0:02:41.7]}
8... c5 {[%clk 0:02:44.2]} 9. O-O {[%clk 0:02:39.7]} 9... cxd4 {[%clk
0:02:44.1]} 10. exd4 {[%clk 0:02:38.4]} 10... dxc4 {[%clk 0:02:36.3]} 11. Bxc4
{[%clk 0:02:37.7]} 11... Nd5 {[%clk 0:02:28.8]} 12. Bxe7 {[%clk 0:02:29.6]}
12... Nxe7 {[%clk 0:02:25.8]} 13. Qe2 {[%clk 0:02:28.8]} 13... Nd7 {[%clk
0:02:20]} 14. Rad1 {[%clk 0:02:20.9]} 14... Nf6 {[%clk 0:02:19.4]} 15. Rfe1
{[%clk 0:02:19.9]} 15... Ned5 {[%clk 0:02:18.6]} 16. Ne5 {[%clk 0:02:15.6]}
16... Rc8 {[%clk 0:02:16.8]} 17. Bd3 {[%clk 0:02:14]} 17... Nxc3 {[%clk
0:02:15.1]} 18. bxc3 {[%clk 0:02:13.5]} 18... Rxc3 {[%clk 0:02:15]} 19. Qe3
{[%clk 0:02:08.3]} 19... Qd5 {[%clk 0:02:03.2]} 20. f3 {[%clk 0:01:59.4]} 20...
Rfc8 {[%clk 0:01:55.3]} 21. Qf4 {[%clk 0:01:44.2]} 21... Qd6 {[%clk 0:01:28.8]}
22. a4 {[%clk 0:01:30.8]} 22... Rd8 {[%clk 0:01:13.2]} 23. Qh4 {[%clk
0:01:28.1]} 23... h6 {[%clk 0:01:05.1]} 24. h3 {[%clk 0:01:20.8]} 24... Kf8
{[%clk 0:01:00]} 25. Bb1 {[%clk 0:00:56.1]} 25... Qb4 {[%clk 0:00:55.9]} 26. Kh1
{[%clk 0:00:44.1]} 26... Qxa4 {[%clk 0:00:54.2]} 27. Be4 {[%clk 0:00:35.2]}
27... Bxe4 {[%clk 0:00:45.8]} 28. fxe4 {[%clk 0:00:29.5]} 28... Re3 {[%clk
0:00:44.8]} 29. Rf1 {[%clk 0:00:19.3]} 29... Rxe4 {[%clk 0:00:44.1]} 30. Qg3
{[%clk 0:00:18.3]} 30... Rexd4 {[%clk 0:00:38.6]} 31. Rde1 {[%clk 0:00:17.6]}
31... Rd1 {[%clk 0:00:32.1]} 32. Rxd1 {[%clk 0:00:16.6]} 32... Rxd1 {[%clk
0:00:31.8]} 33. Rxd1 {[%clk 0:00:15.9]} 33... Qxd1+ {[%clk 0:00:31.8]} 34. Kh2
{[%clk 0:00:16.8]} 34... Kg8 {[%clk 0:00:29.9]} 35. Nf3 {[%clk 0:00:15.3]} 35...
Qd8 {[%clk 0:00:28.7]} 36. Qe5 {[%clk 0:00:14.8]} 36... a6 {[%clk 0:00:26.6]}
37. Kh1 {[%clk 0:00:14.9]} 37... b5 {[%clk 0:00:26.3]} 38. Qc5 {[%clk
0:00:14.6]} 38... Nd5 {[%clk 0:00:25.1]} 39. Ne5 {[%clk 0:00:14.3]} 39... Qd7
{[%clk 0:00:17.2]} 40. Nxd7 {[%clk 0:00:14.3]} 40... b4 {[%clk 0:00:12.5]} 41.
Qf8+ {[%clk 0:00:14]} 41... Kh7 {[%clk 0:00:12.1]} 42. Qxf7 {[%clk 0:00:14.3]}
42... b3 {[%clk 0:00:12.4]} 43. Nf8+ {[%clk 0:00:14.3]} 43... Kh8 {[%clk
0:00:12.2]} 44. Nxe6 {[%clk 0:00:14.2]} 1-0

[Event "Early-Titled-Tuesday-Blitz-February-27-2024"]
[Site "Chess.com"]
[Date "2024.02.27"]
[Round "11"]
[White "FredddieCroderg"]
[Black "tarno17"]
[Result "0-1"]
[WhiteElo "2272"]
[BlackElo "2161"]
[TimeControl "180+1"]
[EndTime "10:06:08 PST"]
[Termination "tarno17 won on time"]

1. e4 {[%clk 0:02:50.3]} 1... c5 {[%clk 0:02:59.9]} 2. Bc4 {[%clk 0:02:47.5]}
2... e6 {[%clk 0:02:58.2]} 3. Qf3 {[%clk 0:02:47.2]} 3... a6 {[%clk 0:02:57.8]}
4. d3 {[%clk 0:02:46.6]} 4... b5 {[%clk 0:02:57.9]} 5. Bb3 {[%clk 0:02:46]} 5...
Bb7 {[%clk 0:02:58.3]} 6. Qg3 {[%clk 0:02:45.4]} 6... d5 {[%clk 0:02:52.3]} 7.
exd5 {[%clk 0:02:44.2]} 7... exd5 {[%clk 0:02:25]} 8. c4 {[%clk 0:02:34.8]} 8...
dxc4 {[%clk 0:02:05.7]} 9. dxc4 {[%clk 0:02:33.3]} 9... Nf6 {[%clk 0:01:56.1]}
10. Nf3 {[%clk 0:02:29.9]} 10... Bd6 {[%clk 0:01:30.4]} 11. Qh4 {[%clk
0:02:23.4]} 11... O-O {[%clk 0:01:01.7]} 12. O-O {[%clk 0:02:18.9]} 12... Bxf3
{[%clk 0:00:36.6]} 13. gxf3 {[%clk 0:02:19.8]} 13... Nbd7 {[%clk 0:00:30.1]} 14.
Nc3 {[%clk 0:02:13.4]} 14... Ne5 {[%clk 0:00:22.9]} 15. Kg2 {[%clk 0:01:59.1]}
15... Ng6 {[%clk 0:00:14.8]} 16. Qh3 {[%clk 0:01:38.7]} 16... Bf4 {[%clk
0:00:10.7]} 17. Kh1 {[%clk 0:01:26.2]} 17... Qc7 {[%clk 0:00:06.8]} 18. Bxf4
{[%clk 0:01:20.1]} 18... Nxf4 {[%clk 0:00:07.7]} 19. Qg3 {[%clk 0:01:18.1]}
19... N6h5 {[%clk 0:00:08.3]} 20. Qg4 {[%clk 0:01:14.9]} 20... b4 {[%clk
0:00:08.8]} 21. Nd5 {[%clk 0:01:11.9]} 21... Qe5 {[%clk 0:00:07]} 22. Rae1
{[%clk 0:01:08.5]} 22... Qxb2 {[%clk 0:00:06.9]} 23. Ne7+ {[%clk 0:00:54.9]}
23... Kh8 {[%clk 0:00:06.9]} 24. Rg1 {[%clk 0:00:48]} 24... Rae8 {[%clk
0:00:04.5]} 25. Qg5 {[%clk 0:00:40.1]} 25... Qf6 {[%clk 0:00:03.5]} 26. Qxf6
{[%clk 0:00:38.4]} 26... Nxf6 {[%clk 0:00:04.4]} 27. Nf5 {[%clk 0:00:34]} 27...
Nd3 {[%clk 0:00:04.3]} 28. Rxe8 {[%clk 0:00:30.6]} 28... Rxe8 {[%clk 0:00:05.2]}
29. Nd6 {[%clk 0:00:26.8]} 29... Rf8 {[%clk 0:00:04.6]} 30. Kg2 {[%clk
0:00:21.5]} 30... Nh5 {[%clk 0:00:04.3]} 31. Rd1 {[%clk 0:00:20.1]} 31... Nhf4+
{[%clk 0:00:04.7]} 32. Kg3 {[%clk 0:00:18.9]} 32... g5 {[%clk 0:00:05]} 33. Bc2
{[%clk 0:00:16.9]} 33... Ne5 {[%clk 0:00:03.6]} 34. Nf5 {[%clk 0:00:15.8]} 34...
h5 {[%clk 0:00:02.8]} 35. Rd6 {[%clk 0:00:14.3]} 35... h4+ {[%clk 0:00:03.2]}
36. Nxh4 {[%clk 0:00:11]} 36... Ne2+ {[%clk 0:00:03.7]} 37. Kg2 {[%clk
0:00:08.8]} 37... gxh4 {[%clk 0:00:04.3]} 38. Rh6+ {[%clk 0:00:07.6]} 38... Kg7
{[%clk 0:00:04.5]} 39. Rh5 {[%clk 0:00:07.7]} 39... Nf4+ {[%clk 0:00:04.2]} 0-1

[Event "Early-Titled-Tuesday-Blitz-February-27-2024"]
[Site "Chess.com"]
[Date "2024.02.27"]
[Round "11"]
[White "1mbl4"]
[Black "Grandmaster1369"]
[Result "0-1"]
[WhiteElo "2615"]
[BlackElo "2767"]
[TimeControl "180+1"]
[EndTime "10:06:09 PST"]
[Termination "Grandmaster1369 won on time"]

1. d4 {[%clk 0:03:00.9]} 1... Nf6 {[%clk 0:02:59.9]} 2. Bf4 {[%clk 0:03:00.9]}
2... d5 {[%clk 0:02:57.8]} 3. Nc3 {[%clk 0:03:01]} 3... c5 {[%clk 0:02:54.4]} 4.
e3 {[%clk 0:02:59.4]} 4... Bf5 {[%clk 0:02:49.7]} 5. Nb5 {[%clk 0:02:53.6]} 5...
Na6 {[%clk 0:02:49.1]} 6. c3 {[%clk 0:02:45.9]} 6... e6 {[%clk 0:02:39.8]} 7. a4
{[%clk 0:02:44.9]} 7... Be7 {[%clk 0:02:37.4]} 8. h3 {[%clk 0:02:44.4]} 8... h6
{[%clk 0:02:37]} 9. Nf3 {[%clk 0:02:43.9]} 9... O-O {[%clk 0:02:36.7]} 10. Be2
{[%clk 0:02:43.7]} 10... Ne4 {[%clk 0:02:34.5]} 11. O-O {[%clk 0:02:43.2]} 11...
c4 {[%clk 0:02:35]} 12. b3 {[%clk 0:02:42.2]} 12... cxb3 {[%clk 0:02:10.2]} 13.
Qxb3 {[%clk 0:02:43.1]} 13... Qa5 {[%clk 0:02:10.6]} 14. Rfc1 {[%clk 0:02:26.2]}
14... Rfc8 {[%clk 0:02:10]} 15. Ra2 {[%clk 0:02:11.5]} 15... Nb8 {[%clk
0:02:07.5]} 16. Ne5 {[%clk 0:02:04.4]} 16... a6 {[%clk 0:02:07.2]} 17. Rca1
{[%clk 0:01:32.4]} 17... Nc6 {[%clk 0:01:56.4]} 18. f3 {[%clk 0:00:58.7]} 18...
Nf6 {[%clk 0:01:36.1]} 19. Nd3 {[%clk 0:00:51.6]} 19... Qd8 {[%clk 0:01:13.6]}
20. Na3 {[%clk 0:00:49.2]} 20... Na5 {[%clk 0:01:13]} 21. Qc2 {[%clk 0:00:44.8]}
21... Nc4 {[%clk 0:01:09.8]} 22. Nb1 {[%clk 0:00:41.5]} 22... g5 {[%clk
0:01:08.8]} 23. Bh2 {[%clk 0:00:40.3]} 23... Nxe3 {[%clk 0:01:08.2]} 24. Qd2
{[%clk 0:00:37.5]} 24... Nc4 {[%clk 0:01:05.7]} 25. Qe1 {[%clk 0:00:37.5]} 25...
Qa5 {[%clk 0:01:05]} 26. Nb4 {[%clk 0:00:33.9]} 26... Bd6 {[%clk 0:00:54.6]} 27.
Bxc4 {[%clk 0:00:29.1]} 27... Bxh2+ {[%clk 0:00:53.8]} 28. Kxh2 {[%clk 0:00:30]}
28... Rxc4 {[%clk 0:00:53.8]} 29. Qe5 {[%clk 0:00:29.5]} 29... Qc7 {[%clk
0:00:53.3]} 30. g4 {[%clk 0:00:26.7]} 30... Bxb1 {[%clk 0:00:49.7]} 31. Rxb1
{[%clk 0:00:25.9]} 31... Rxc3 {[%clk 0:00:50.2]} 32. Kg2 {[%clk 0:00:19.4]}
32... Qxe5 {[%clk 0:00:49.4]} 33. dxe5 {[%clk 0:00:20.3]} 33... Nd7 {[%clk
0:00:50]} 34. Re2 {[%clk 0:00:20.2]} 34... Rac8 {[%clk 0:00:49.8]} 35. Na2
{[%clk 0:00:19.8]} 35... Rc2 {[%clk 0:00:49.9]} 36. Rb2 {[%clk 0:00:18.1]} 36...
Rxe2+ {[%clk 0:00:47.2]} 37. Rxe2 {[%clk 0:00:19]} 37... Rc4 {[%clk 0:00:45.9]}
38. a5 {[%clk 0:00:16.2]} 38... Ra4 {[%clk 0:00:44.9]} 39. Rb2 {[%clk 0:00:15]}
39... Rxa5 {[%clk 0:00:45.1]} 40. Nc3 {[%clk 0:00:15.3]} 40... b5 {[%clk
0:00:45.3]} 41. h4 {[%clk 0:00:11.6]} 41... Nxe5 {[%clk 0:00:45.4]} 42. hxg5
{[%clk 0:00:11.9]} 42... hxg5 {[%clk 0:00:46.3]} 43. Kg3 {[%clk 0:00:11.5]}
43... Ra3 {[%clk 0:00:44.7]} 44. Rc2 {[%clk 0:00:10.2]} 44... Nc4 {[%clk
0:00:44.9]} 45. Ne2 {[%clk 0:00:09.4]} 45... e5 {[%clk 0:00:41.7]} 46. Kf2
{[%clk 0:00:07.4]} 46... d4 {[%clk 0:00:41]} 47. Ng3 {[%clk 0:00:07.3]} 47... d3
{[%clk 0:00:38.3]} 48. Rc1 {[%clk 0:00:07.8]} 48... Ra2+ {[%clk 0:00:37.4]} 49.
Kg1 {[%clk 0:00:04.8]} 49... d2 {[%clk 0:00:37.8]} 50. Rd1 {[%clk 0:00:05]}
50... Ne3 {[%clk 0:00:38.1]} 0-1

[Event "Early-Titled-Tuesday-Blitz-February-27-2024"]
[Site "Chess.com"]
[Date "2024.02.27"]
[Round "11"]
[White "db-banana"]
[Black "jk13"]
[Result "0-1"]
[WhiteElo "2492"]
[BlackElo "2692"]
[TimeControl "180+1"]
[EndTime "10:06:09 PST"]
[Termination "jk13 won on time"]

1. e4 {[%clk 0:02:54.7]} 1... e5 {[%clk 0:02:57.3]} 2. Nf3 {[%clk 0:02:54.5]}
2... Nc6 {[%clk 0:02:58.1]} 3. Bc4 {[%clk 0:02:54.9]} 3... Bc5 {[%clk
0:02:57.7]} 4. c3 {[%clk 0:02:55]} 4... Nf6 {[%clk 0:02:58.3]} 5. d3 {[%clk
0:02:55.5]} 5... O-O {[%clk 0:02:58.3]} 6. Nbd2 {[%clk 0:02:56.2]} 6... d5
{[%clk 0:02:58.8]} 7. exd5 {[%clk 0:02:56.6]} 7... Nxd5 {[%clk 0:02:59.7]} 8.
O-O {[%clk 0:02:51.2]} 8... Nb6 {[%clk 0:02:55.7]} 9. Bb5 {[%clk 0:02:49.2]}
9... f6 {[%clk 0:02:50.3]} 10. Ne4 {[%clk 0:02:43.3]} 10... Be7 {[%clk
0:02:49.9]} 11. Bxc6 {[%clk 0:02:32.1]} 11... bxc6 {[%clk 0:02:49.1]} 12. d4
{[%clk 0:02:33]} 12... f5 {[%clk 0:02:42.3]} 13. Nc5 {[%clk 0:02:21.4]} 13... e4
{[%clk 0:02:38.6]} 14. Ne5 {[%clk 0:02:17.7]} 14... Qd5 {[%clk 0:02:26.4]} 15.
Qb3 {[%clk 0:01:52.5]} 15... Kh8 {[%clk 0:02:06.8]} 16. Qxd5 {[%clk 0:01:45.6]}
16... cxd5 {[%clk 0:02:07.7]} 17. a4 {[%clk 0:01:33.9]} 17... f4 {[%clk
0:01:56.9]} 18. a5 {[%clk 0:01:30]} 18... Bxc5 {[%clk 0:01:10.8]} 19. axb6
{[%clk 0:01:27]} 19... Bxb6 {[%clk 0:01:07.8]} 20. Rd1 {[%clk 0:01:14]} 20...
Be6 {[%clk 0:00:58.5]} 21. b3 {[%clk 0:01:11.5]} 21... Rad8 {[%clk 0:00:54.1]}
22. Ba3 {[%clk 0:01:10.9]} 22... Rfe8 {[%clk 0:00:53.1]} 23. Bb2 {[%clk
0:01:07.1]} 23... c5 {[%clk 0:00:48]} 24. Bc1 {[%clk 0:00:53]} 24... cxd4 {[%clk
0:00:46.8]} 25. cxd4 {[%clk 0:00:52.7]} 25... g5 {[%clk 0:00:47.4]} 26. h4
{[%clk 0:00:50.5]} 26... h6 {[%clk 0:00:48]} 27. hxg5 {[%clk 0:00:50.2]} 27...
hxg5 {[%clk 0:00:48.3]} 28. g3 {[%clk 0:00:46.2]} 28... Rf8 {[%clk 0:00:29.7]}
29. gxf4 {[%clk 0:00:35.8]} 29... gxf4 {[%clk 0:00:29.5]} 30. Bxf4 {[%clk
0:00:36.2]} 30... Kg7 {[%clk 0:00:24.6]} 31. Bg3 {[%clk 0:00:31.4]} 31... Rh8
{[%clk 0:00:21.9]} 32. Nc6 {[%clk 0:00:28.7]} 32... Bg4 {[%clk 0:00:17.1]} 33.
Nxd8 {[%clk 0:00:20.5]} 33... Rxd8 {[%clk 0:00:16.5]} 34. Rdc1 {[%clk
0:00:14.7]} 34... Bf3 {[%clk 0:00:13.5]} 35. Rxa7+ {[%clk 0:00:10.5]} 35... Bxa7
{[%clk 0:00:11.9]} 36. Rc7+ {[%clk 0:00:11.3]} 36... Kg6 {[%clk 0:00:12.4]} 37.
Rxa7 {[%clk 0:00:11.4]} 37... Rh8 {[%clk 0:00:11.8]} 38. Bh2 {[%clk 0:00:10.8]}
38... Kf5 {[%clk 0:00:10.8]} 39. Rf7+ {[%clk 0:00:10.4]} 39... Ke6 {[%clk
0:00:10.5]} 40. Rg7 {[%clk 0:00:10.5]} 40... Ra8 {[%clk 0:00:09.7]} 41. Rg6+
{[%clk 0:00:10.1]} 41... Kf5 {[%clk 0:00:09]} 0-1

[Event "Early-Titled-Tuesday-Blitz-February-27-2024"]
[Site "Chess.com"]
[Date "2024.02.27"]
[Round "11"]
[White "Arlo2024"]
[Black "ricaurtelopezj1955"]
[Result "0-1"]
[WhiteElo "2290"]
[BlackElo "2187"]
[TimeControl "180+1"]
[EndTime "10:06:09 PST"]
[Termination "ricaurtelopezj1955 won by checkmate"]

1. e4 {[%clk 0:03:00.9]} 1... e5 {[%clk 0:02:58.5]} 2. Nf3 {[%clk 0:03:00.6]}
2... d5 {[%clk 0:02:57.1]} 3. Nxe5 {[%clk 0:02:55.4]} 3... Bd6 {[%clk
0:02:55.2]} 4. d4 {[%clk 0:02:54.4]} 4... dxe4 {[%clk 0:02:53.6]} 5. Be2 {[%clk
0:02:48.3]} 5... Nd7 {[%clk 0:02:49.3]} 6. Nc4 {[%clk 0:02:45.5]} 6... Ngf6
{[%clk 0:02:43.6]} 7. Nc3 {[%clk 0:02:43.4]} 7... O-O {[%clk 0:02:41.7]} 8. O-O
{[%clk 0:02:41.2]} 8... h6 {[%clk 0:02:40.6]} 9. Nxd6 {[%clk 0:02:39.6]} 9...
cxd6 {[%clk 0:02:39.4]} 10. Bf4 {[%clk 0:02:39.9]} 10... d5 {[%clk 0:02:27.3]}
11. Qd2 {[%clk 0:02:39.8]} 11... Re8 {[%clk 0:02:22.3]} 12. Nd1 {[%clk
0:02:38.7]} 12... Nf8 {[%clk 0:02:19.6]} 13. h3 {[%clk 0:02:37.4]} 13... Ne6
{[%clk 0:02:13.7]} 14. Be5 {[%clk 0:02:34.9]} 14... Ng5 {[%clk 0:02:02.9]} 15.
Ne3 {[%clk 0:02:21.2]} 15... Bxh3 {[%clk 0:01:58.1]} 16. gxh3 {[%clk 0:02:19.3]}
16... Nxh3+ {[%clk 0:01:57.1]} 17. Kg2 {[%clk 0:02:14.6]} 17... Ng5 {[%clk
0:01:51.1]} 18. Bxf6 {[%clk 0:02:07]} 18... Qxf6 {[%clk 0:01:49.4]} 19. Nxd5
{[%clk 0:02:01.4]} 19... Qf5 {[%clk 0:01:40.3]} 20. Nf4 {[%clk 0:02:00.2]} 20...
Rad8 {[%clk 0:01:18.3]} 21. Qe3 {[%clk 0:02:00]} 21... Rxd4 {[%clk 0:01:12.8]}
22. Qxd4 {[%clk 0:01:53.7]} 22... Qxf4 {[%clk 0:01:12.5]} 23. Qe3 {[%clk
0:01:52.2]} 23... Qf5 {[%clk 0:01:07.3]} 24. Rad1 {[%clk 0:01:46]} 24... Re6
{[%clk 0:01:05.8]} 25. Rg1 {[%clk 0:01:41.7]} 25... Rf6 {[%clk 0:01:02.9]} 26.
Kf1 {[%clk 0:01:36.2]} 26... Kh7 {[%clk 0:00:53.1]} 27. Bg4 {[%clk 0:01:33.8]}
27... Qe5 {[%clk 0:00:47.3]} 28. Qd4 {[%clk 0:01:29.9]} 28... Qh2 {[%clk
0:00:42.5]} 29. Be2 {[%clk 0:01:25]} 29... Rf4 {[%clk 0:00:30.5]} 30. Qe3 {[%clk
0:01:23.4]} 30... Nh3 {[%clk 0:00:26.1]} 31. Qg3 {[%clk 0:01:16.5]} 31... Rxf2+
{[%clk 0:00:21.4]} 32. Ke1 {[%clk 0:01:10.7]} 32... Rxe2+ {[%clk 0:00:20.6]} 33.
Kf1 {[%clk 0:01:11.3]} 33... Rf2+ {[%clk 0:00:18.6]} 34. Ke1 {[%clk 0:01:10.9]}
34... Re2+ {[%clk 0:00:15.3]} 35. Kf1 {[%clk 0:01:11.4]} 35... Qxg1+ {[%clk
0:00:13.5]} 36. Qxg1 {[%clk 0:01:09.1]} 36... Nxg1 {[%clk 0:00:13.3]} 37. Kxg1
{[%clk 0:01:09.3]} 37... Rxc2 {[%clk 0:00:13.4]} 38. Rd7 {[%clk 0:01:04.3]}
38... f5 {[%clk 0:00:09.4]} 39. Rxb7 {[%clk 0:01:03.4]} 39... f4 {[%clk
0:00:08.6]} 40. b4 {[%clk 0:01:03]} 40... e3 {[%clk 0:00:08.1]} 41. Rxa7 {[%clk
0:01:02.7]} 41... f3 {[%clk 0:00:07.4]} 42. Re7 {[%clk 0:01:02.1]} 42... Rc1+
{[%clk 0:00:06.3]} 43. Kh2 {[%clk 0:01:01.7]} 43... f2 {[%clk 0:00:06.3]} 44.
Rf7 {[%clk 0:00:55.7]} 44... f1=Q {[%clk 0:00:04.9]} 45. Rxf1 {[%clk 0:00:53.4]}
45... Rxf1 {[%clk 0:00:05.3]} 46. b5 {[%clk 0:00:54]} 46... e2 {[%clk
0:00:05.2]} 47. Kg2 {[%clk 0:00:54.4]} 47... e1=Q {[%clk 0:00:04.8]} 48. b6
{[%clk 0:00:55.3]} 48... Qf2+ {[%clk 0:00:04.2]} 49. Kh3 {[%clk 0:00:46.5]}
49... Rg1 {[%clk 0:00:04]} 50. b7 {[%clk 0:00:30.8]} 50... Qg3# {[%clk
0:00:04.4]} 0-1

[Event "Early-Titled-Tuesday-Blitz-February-27-2024"]
[Site "Chess.com"]
[Date "2024.02.27"]
[Round "11"]
[White "vi_pranav"]
[Black "ChessLover0108"]
[Result "1-0"]
[WhiteElo "3112"]
[BlackElo "2967"]
[TimeControl "180+1"]
[EndTime "10:06:11 PST"]
[Termination "vi_pranav won by resignation"]

1. d4 {[%clk 0:03:00.9]} 1... Nf6 {[%clk 0:02:58.2]} 2. Nc3 {[%clk 0:03:01.2]}
2... d5 {[%clk 0:02:58]} 3. Bf4 {[%clk 0:03:01.8]} 3... c6 {[%clk 0:02:58.1]} 4.
e3 {[%clk 0:03:01.9]} 4... Bf5 {[%clk 0:02:58.8]} 5. Nf3 {[%clk 0:02:58.5]} 5...
e6 {[%clk 0:02:59.1]} 6. Ne5 {[%clk 0:02:57.6]} 6... Qb6 {[%clk 0:02:40.9]} 7.
Rb1 {[%clk 0:02:55.5]} 7... Bb4 {[%clk 0:02:25.2]} 8. g4 {[%clk 0:02:54.7]} 8...
Bg6 {[%clk 0:02:16]} 9. Bg2 {[%clk 0:02:54.2]} 9... Nbd7 {[%clk 0:02:11]} 10.
O-O {[%clk 0:02:47.7]} 10... Nxe5 {[%clk 0:02:10.1]} 11. Bxe5 {[%clk 0:02:48.6]}
11... O-O {[%clk 0:01:29.2]} 12. h3 {[%clk 0:02:37.4]} 12... Nd7 {[%clk
0:01:24.3]} 13. Bg3 {[%clk 0:02:37]} 13... Qa6 {[%clk 0:01:16.9]} 14. Ne2 {[%clk
0:02:33.9]} 14... Qxa2 {[%clk 0:01:12.6]} 15. Nf4 {[%clk 0:02:33.8]} 15... Qa6
{[%clk 0:01:08.6]} 16. h4 {[%clk 0:02:25.3]} 16... Qc4 {[%clk 0:00:29.7]} 17.
Rc1 {[%clk 0:02:01.2]} 17... e5 {[%clk 0:00:26.5]} 18. dxe5 {[%clk 0:01:33.4]}
18... Nxe5 {[%clk 0:00:26.7]} 19. h5 {[%clk 0:01:33.7]} 19... Be4 {[%clk
0:00:22.7]} 20. f3 {[%clk 0:01:33.8]} 20... Bc5 {[%clk 0:00:14.2]} 21. Bf2
{[%clk 0:01:33.2]} 21... Rad8 {[%clk 0:00:08.9]} 22. b3 {[%clk 0:00:50]} 22...
Qb5 {[%clk 0:00:09.1]} 23. Re1 {[%clk 0:00:47]} 23... Rfe8 {[%clk 0:00:02.5]}
24. Bh4 {[%clk 0:00:22.9]} 24... f6 {[%clk 0:00:02.1]} 25. Bf2 {[%clk
0:00:22.9]} 25... h6 {[%clk 0:00:02.1]} 26. fxe4 {[%clk 0:00:19.8]} 26... dxe4
{[%clk 0:00:03]} 27. Qe2 {[%clk 0:00:20.4]} 27... Qxe2 {[%clk 0:00:03.7]} 28.
Rxe2 {[%clk 0:00:21.3]} 28... Nxg4 {[%clk 0:00:04.6]} 29. Bh3 {[%clk 0:00:21.9]}
29... Ne5 {[%clk 0:00:01.8]} 30. Bf5 {[%clk 0:00:21.7]} 30... Nf3+ {[%clk
0:00:02.2]} 31. Kh1 {[%clk 0:00:22.2]} 31... Re5 {[%clk 0:00:02.2]} 32. Be6+
{[%clk 0:00:17.4]} 32... Kf8 {[%clk 0:00:01.8]} 33. Ng6+ {[%clk 0:00:17.1]}
33... Ke8 {[%clk 0:00:02.6]} 34. Nxe5 {[%clk 0:00:17.7]} 34... Nxe5 {[%clk
0:00:03.4]} 35. Bf5 {[%clk 0:00:18.3]} 35... Nf3 {[%clk 0:00:02.4]} 36. Bxe4
{[%clk 0:00:17.8]} 36... Ng5 {[%clk 0:00:02.8]} 37. Bg2 {[%clk 0:00:17.3]} 37...
Rd7 {[%clk 0:00:02.2]} 38. e4 {[%clk 0:00:15.2]} 38... Ba3 {[%clk 0:00:02.7]}
39. Ra1 {[%clk 0:00:14.4]} 39... Bd6 {[%clk 0:00:03.4]} 40. Rd1 {[%clk
0:00:13.1]} 1-0

[Event "Early-Titled-Tuesday-Blitz-February-27-2024"]
[Site "Chess.com"]
[Date "2024.02.27"]
[Round "11"]
[White "Manukyan_Artak"]
[Black "AttackSparrow"]
[Result "1-0"]
[WhiteElo "2500"]
[BlackElo "2626"]
[TimeControl "180+1"]
[EndTime "10:06:11 PST"]
[Termination "Manukyan_Artak won on time"]

1. e4 {[%clk 0:03:00.9]} 1... e5 {[%clk 0:02:59.7]} 2. Nf3 {[%clk 0:03:01.2]}
2... Nc6 {[%clk 0:03:00.1]} 3. d4 {[%clk 0:03:01.9]} 3... exd4 {[%clk
0:02:58.7]} 4. Nxd4 {[%clk 0:03:02.8]} 4... Bc5 {[%clk 0:02:57.7]} 5. Nxc6
{[%clk 0:03:01.6]} 5... Qf6 {[%clk 0:02:57.2]} 6. Qf3 {[%clk 0:03:00.7]} 6...
bxc6 {[%clk 0:02:56.9]} 7. Nc3 {[%clk 0:02:59.7]} 7... Bd4 {[%clk 0:02:56.1]} 8.
Bc4 {[%clk 0:02:56.5]} 8... a5 {[%clk 0:02:52.7]} 9. Bd2 {[%clk 0:02:54.6]} 9...
a4 {[%clk 0:02:50.4]} 10. a3 {[%clk 0:02:52.5]} 10... Ne7 {[%clk 0:02:42.6]} 11.
Qxf6 {[%clk 0:02:52]} 11... Bxf6 {[%clk 0:02:43.5]} 12. f4 {[%clk 0:02:49.6]}
12... d6 {[%clk 0:02:40.7]} 13. O-O-O {[%clk 0:02:48.4]} 13... O-O {[%clk
0:02:40.3]} 14. Rde1 {[%clk 0:02:47.8]} 14... Ng6 {[%clk 0:02:40.3]} 15. g3
{[%clk 0:02:31.5]} 15... Re8 {[%clk 0:02:34.7]} 16. h4 {[%clk 0:02:31]} 16... h5
{[%clk 0:02:35.3]} 17. Bd3 {[%clk 0:02:16.4]} 17... Bg4 {[%clk 0:02:32.1]} 18.
Nd1 {[%clk 0:02:12.5]} 18... Bd4 {[%clk 0:02:28.9]} 19. Be3 {[%clk 0:01:57.5]}
19... Bxe3+ {[%clk 0:01:39.6]} 20. Rxe3 {[%clk 0:01:58.4]} 20... Nf8 {[%clk
0:01:39.7]} 21. Nf2 {[%clk 0:01:55.4]} 21... Nd7 {[%clk 0:01:26.3]} 22. Nxg4
{[%clk 0:01:53.2]} 22... hxg4 {[%clk 0:01:27.2]} 23. h5 {[%clk 0:01:50.7]} 23...
d5 {[%clk 0:01:14.2]} 24. e5 {[%clk 0:01:49.2]} 24... Nb6 {[%clk 0:00:52.9]} 25.
Rh4 {[%clk 0:01:34.4]} 25... Re6 {[%clk 0:00:51.8]} 26. Rxg4 {[%clk 0:01:32.8]}
26... Rh6 {[%clk 0:00:52.7]} 27. Rg5 {[%clk 0:01:28.7]} 27... Kf8 {[%clk
0:00:46.1]} 28. g4 {[%clk 0:01:25.1]} 28... Rb8 {[%clk 0:00:30.6]} 29. f5 {[%clk
0:01:21.3]} 29... Re8 {[%clk 0:00:30.4]} 30. Kd2 {[%clk 0:01:14.9]} 30... Nd7
{[%clk 0:00:29.6]} 31. e6 {[%clk 0:01:11.3]} 31... fxe6 {[%clk 0:00:06.7]} 32.
fxe6 {[%clk 0:01:10.7]} 32... Rhxe6 {[%clk 0:00:07.6]} 33. Rxe6 {[%clk
0:01:09.5]} 33... Rxe6 {[%clk 0:00:08.5]} 34. Rf5+ {[%clk 0:01:03.5]} 34... Ke7
{[%clk 0:00:07.1]} 35. g5 {[%clk 0:01:02]} 35... Nc5 {[%clk 0:00:04.5]} 36. c4
{[%clk 0:00:49.5]} 36... Rd6 {[%clk 0:00:03.1]} 37. cxd5 {[%clk 0:00:46.1]}
37... cxd5 {[%clk 0:00:04]} 38. Bc2 {[%clk 0:00:44.2]} 38... c6 {[%clk
0:00:04.2]} 39. g6 {[%clk 0:00:30.7]} 39... Rf6 {[%clk 0:00:04.2]} 40. h6 {[%clk
0:00:24.1]} 40... Rxg6 {[%clk 0:00:02.4]} 41. Re5+ {[%clk 0:00:20.3]} 41... Re6
{[%clk 0:00:02.7]} 42. hxg7 {[%clk 0:00:18.8]} 42... Kf7 {[%clk 0:00:02.3]} 43.
Rg5 {[%clk 0:00:17.4]} 43... Kg8 {[%clk 0:00:02.8]} 44. Bh7+ {[%clk 0:00:16.4]}
44... Kxh7 {[%clk 0:00:02]} 45. g8=Q+ {[%clk 0:00:17.3]} 1-0